fUSD/lending_fUSD_20250720
["ID","MTS","AMOUNT","RATE_DAILY","PERIOD"]
[373440703,1753012245211,-150.0,0.00018939,2]
[373440704,1753012245221,-997.478,0.00018945,2]
[373440705,1753012245230,-660.2194396,0.00018959,2]
[373440706,1753012245240,-544.10758033,0.00018968,2]
[373440707,1753012245250,-163.90496011,0.00018987,2]
[373440708,1753012245259,-999.0,0.00018993,2]
[373440709,1753012245269,-255.395342,0.00018996,2]
[373440710,1753012245279,-5000.0,0.00019,2]
[373440711,1753012245288,-8325.56396113,0.00019,2]
[373440712,1753012245297,-296.63,0.00019016,2]
[373440713,1753012245306,-660.2194396,0.00019044,2]
[373440714,1753012245315,-150.21,0.00019054,2]
[373440715,1753012245325,-303.88,0.00019068,2]
[373440716,1753012245334,-544.10758033,0.00019078,2]
[373440717,1753012245343,-5000.0,0.00019078,2]
[373440718,1753012245352,-242.79,0.000191,2]
[373440719,1753012245361,-790.25725921,0.00019111,2]
[373440720,1753012245370,-152.41746568,0.00019117,2]
[373440721,1753012245379,-660.2194396,0.00019128,2]
[373440722,1753012245388,-239.84119403,0.0001915,2]
[373440723,1753012245398,-150.0,0.00019155,2]
[373440724,1753012245407,-500.0,0.00019164,2]
[373440725,1753012245416,-1200.0,0.00019164,2]
[373440726,1753012245425,-1300.0,0.00019164,2]
[373440727,1753012245434,-178.62791548,0.00019168,2]
[373440728,1753012245443,-152.28,0.00019173,2]
[373440729,1753012245452,-152.27,0.00019173,2]
[373440730,1753012245461,-150.11,0.00019173,2]
[373440731,1753012245470,-501.94535035,0.00019173,2]
[373440732,1753012245479,-628.55360397,0.00019173,2]
[373440733,1753012245488,-503.68837759,0.00019173,2]
[373440734,1753012245498,-500.0,0.00019173,2]
[373440735,1753012245507,-501.77587038,0.00019173,2]
[373440736,1753012245518,-500.39239312,0.00019173,2]
[373440737,1753012245528,-503.73183064,0.00019173,2]
[373440738,1753012245537,-502.07295822,0.00019173,2]
[373440739,1753012245546,-300.0,0.00019177,2]
[373440740,1753012245557,-346.66899918,0.00019177,2]
[373440741,1753012245566,-515.43961188,0.00019177,2]
[373440742,1753012245576,-500.0,0.00019177,2]
[373440743,1753012245585,-390.58229225,0.00019177,2]
[373440744,1753012245594,-226.47023549,0.00019177,2]
[373440745,1753012245607,-153.1069,0.00019178,2]
[373440746,1753012245616,-480.0,0.00019178,2]
[373440747,1753012245626,-480.0,0.00019178,2]
[373440748,1753012245637,-480.0,0.00019178,2]
[373440749,1753012245646,-480.0,0.00019178,2]
[373440750,1753012245656,-308.46896355,0.00019178,2]
[373440751,1753012245665,-480.0,0.00019178,2]
[373440752,1753012245674,-480.0,0.00019178,2]
[373440753,1753012245684,-480.0,0.00019178,2]
[373440754,1753012245693,-480.55133863,0.00019178,2]
[373440755,1753012245702,-404.11961553,0.00019178,2]
[373440756,1753012245711,-480.0,0.00019178,2]
[373440757,1753012245721,-480.0,0.00019178,2]
[373440758,1753012245730,-333.69836125,0.00019178,2]
[373440759,1753012245740,-480.0,0.00019178,2]
[373440760,1753012245750,-480.0,0.00019178,2]
[373440761,1753012245759,-460.0,0.00019178,2]
[373440762,1753012245771,-480.0,0.00019178,2]
[373440763,1753012245780,-358.3499308,0.00019178,2]
[373440764,1753012245790,-480.0,0.00019178,2]
[373440765,1753012245799,-480.0,0.00019178,2]
[373440766,1753012245809,-460.73570004,0.00019178,2]
[373440767,1753012245818,-480.0,0.00019178,2]
[373440768,1753012245827,-480.0,0.00019178,2]
[373440769,1753012245836,-480.0,0.00019178,2]
[373440770,1753012245845,-488.02602227,0.00019178,2]
[373440771,1753012245854,-480.0,0.00019178,2]
[373440772,1753012245864,-480.0,0.00019178,2]
[373440773,1753012245874,-528.49728794,0.00019178,2]
[373440774,1753012245885,-480.0,0.00019178,2]
[373440775,1753012245896,-480.0,0.00019178,2]
[373440776,1753012245907,-480.0,0.00019178,2]
[373440777,1753012245915,-480.0,0.00019178,2]
[373440778,1753012245925,-265.19033567,0.00019178,2]
[373440779,1753012245935,-480.0,0.00019178,2]
[373440780,1753012245946,-480.0,0.00019178,2]
[373440781,1753012245955,-481.3882424,0.00019178,2]
[373440782,1753012245965,-486.54087074,0.00019178,2]
[373440783,1753012245977,-460.0,0.00019178,2]
[373440784,1753012245987,-494.47521136,0.00019178,2]
[373440785,1753012245997,-481.70437893,0.00019178,2]
[373440786,1753012246007,-480.0,0.00019178,2]
[373440787,1753012246018,-480.0,0.00019178,2]
[373440788,1753012246028,-480.0,0.00019178,2]
[373440789,1753012246037,-480.0,0.00019178,2]
[373440790,1753012246047,-480.0,0.00019178,2]
[373440791,1753012246057,-480.0,0.00019178,2]
[373440792,1753012246066,-480.0,0.00019178,2]
[373440793,1753012246075,-481.41562678,0.00019178,2]
[373440794,1753012246084,-463.32872898,0.00019178,2]
[373440795,1753012246094,-480.0,0.00019178,2]
[373440796,1753012246103,-480.0,0.00019178,2]
[373440797,1753012246112,-480.0,0.00019178,2]
[373440798,1753012246122,-480.0,0.00019178,2]
[373440800,1753012246131,-480.0,0.00019178,2]
[373440801,1753012246140,-480.0,0.00019178,2]
[373440802,1753012246150,-480.0,0.00019178,2]
[373440803,1753012246160,-480.0,0.00019178,2]
[373440804,1753012246170,-467.83142873,0.00019178,2]
[373440805,1753012246180,-480.0,0.00019178,2]
[373440806,1753012246190,-489.09282719,0.00019178,2]
[373440807,1753012246200,-480.0,0.00019178,2]
[373440808,1753012246210,-480.0,0.00019178,2]
[373440809,1753012246220,-500.0,0.00019178,2]
[373440810,1753012246230,-504.43269244,0.00019178,2]
[373440812,1753012246239,-480.0,0.00019178,2]
[373440814,1753012246249,-480.0,0.00019178,2]
[373440816,1753012246258,-253.13216501,0.00019178,2]
[373440817,1753012246270,-480.0,0.00019178,2]
[373440818,1753012246280,-480.0,0.00019178,2]
[373440819,1753012246289,-480.0,0.00019178,2]
[373440820,1753012246299,-480.0,0.00019178,2]
[373440821,1753012246308,-578.93,0.00019178,2]
[373440822,1753012246318,-480.0,0.00019178,2]
[373440823,1753012246327,-480.0,0.00019178,2]
[373440824,1753012246336,-480.63608502,0.00019178,2]
[373440825,1753012246345,-480.0,0.00019178,2]
[373440826,1753012246354,-462.93251061,0.00019178,2]
[373440827,1753012246364,-480.0,0.00019178,2]
[373440828,1753012246373,-480.0,0.00019178,2]
[373440829,1753012246382,-480.0,0.00019178,2]
[373440830,1753012246391,-480.0,0.00019178,2]
[373440831,1753012246401,-481.2482395,0.00019178,2]
[373440832,1753012246410,-480.82659489,0.00019178,2]
[373440833,1753012246419,-480.0,0.00019178,2]
[373440834,1753012246428,-480.68188359,0.00019178,2]
[373440835,1753012246437,-382.13304619,0.00019178,2]
[373440836,1753012246446,-480.0,0.00019178,2]
[373440837,1753012246455,-263.48714043,0.00019178,2]
[373440838,1753012246464,-462.52053225,0.00019178,2]
[373440839,1753012246473,-480.0,0.00019178,2]
[373440840,1753012246483,-467.70282725,0.00019178,2]
[373440841,1753012246493,-481.78813049,0.00019178,2]
[373440842,1753012246502,-247.61750727,0.00019178,2]
[373440843,1753012246512,-480.0,0.00019178,2]
[373440844,1753012246524,-480.0,0.00019178,2]
[373440845,1753012246533,-480.0,0.00019178,2]
[373440846,1753012246542,-480.0,0.00019178,2]
[373440847,1753012246552,-481.48745262,0.00019178,2]
[373440848,1753012246561,-494.88309242,0.00019178,2]
[373440849,1753012246571,-480.0,0.00019178,2]
[373440850,1753012246580,-480.0,0.00019178,2]
[373440851,1753012246589,-480.0,0.00019178,2]
[373440852,1753012246599,-480.45959886,0.00019178,2]
[373440853,1753012246608,-480.0,0.00019178,2]
[373440854,1753012246618,-480.0,0.00019178,2]
[373440855,1753012246627,-480.51002856,0.00019178,2]
[373440856,1753012246636,-480.0,0.00019178,2]
[373440857,1753012246646,-480.0,0.00019178,2]
[373440858,1753012246656,-520.0,0.00019178,2]
[373440859,1753012246666,-480.0,0.00019178,2]
[373440860,1753012246675,-480.0,0.00019178,2]
[373440861,1753012246684,-480.0,0.00019178,2]
[373440862,1753012246694,-480.0,0.00019178,2]
[373440863,1753012246703,-480.0,0.00019178,2]
[373440864,1753012246713,-480.0,0.00019178,2]
[373440865,1753012246722,-480.75244156,0.00019178,2]
[373440866,1753012246731,-520.0,0.00019178,2]
[373440867,1753012246741,-549.51,0.00019178,2]
[373440868,1753012246751,-480.0,0.00019178,2]
[373440869,1753012246760,-480.0,0.00019178,2]
[373440870,1753012246773,-480.0,0.00019178,2]
[373440871,1753012246782,-417.81549234,0.00019178,2]
[373440872,1753012246792,-480.0,0.00019178,2]
[373440873,1753012246801,-480.0,0.00019178,2]
[373440874,1753012246811,-480.0,0.00019178,2]
[373440875,1753012246821,-480.0,0.00019178,2]
[373440876,1753012246830,-480.0,0.00019178,2]
[373440877,1753012246839,-480.0,0.00019178,2]
[373440878,1753012246849,-480.0,0.00019178,2]
[373440879,1753012246859,-480.0,0.00019178,2]
[373440880,1753012246868,-480.0,0.00019178,2]
[373440881,1753012246878,-480.0,0.00019178,2]
[373440882,1753012246889,-480.0,0.00019178,2]
[373440883,1753012246902,-480.0,0.00019178,2]
[373440884,1753012246912,-460.3603117,0.00019178,2]
[373440885,1753012246921,-469.14390006,0.00019178,2]
[373440886,1753012246931,-480.0,0.00019178,2]
[373440887,1753012246940,-480.0,0.00019178,2]
[373440888,1753012246949,-480.0,0.00019178,2]
[373440889,1753012246958,-480.0,0.00019178,2]
[373440890,1753012246969,-480.0,0.00019178,2]
[373440891,1753012246979,-480.0,0.00019178,2]
[373440892,1753012246989,-480.0,0.00019178,2]
[373440893,1753012246998,-480.0,0.00019178,2]
[373440894,1753012247009,-480.0,0.00019178,2]
[373440895,1753012247020,-480.0,0.00019178,2]
[373440896,1753012247029,-480.0,0.00019178,2]
[373440897,1753012247039,-480.0,0.00019178,2]
[373440898,1753012247048,-480.0,0.00019178,2]
[373440899,1753012247057,-480.0,0.00019178,2]
[373440900,1753012247067,-480.0,0.00019178,2]
[373440901,1753012247076,-480.0,0.00019178,2]
[373440902,1753012247086,-480.0,0.00019178,2]
[373440903,1753012247095,-500.0,0.00019178,2]
[373440904,1753012247105,-480.0,0.00019178,2]
[373440905,1753012247114,-480.0,0.00019178,2]
[373440906,1753012247124,-500.0,0.00019178,2]
[373440907,1753012247133,-500.0,0.00019178,2]
[373440908,1753012247142,-500.0,0.00019178,2]
[373440909,1753012247153,-500.0,0.00019178,2]
[373440910,1753012247162,-461.15761538,0.00019178,2]
[373440911,1753012247171,-500.0,0.00019178,2]
[373440912,1753012247181,-480.0,0.00019178,2]
[373440913,1753012247190,-471.04328406,0.00019178,2]
[373440914,1753012247199,-480.0,0.00019178,2]
[373440916,1753012247209,-291.53309085,0.00019178,2]
[373440919,1753012247220,-480.0,0.00019178,2]
[373440921,1753012247230,-480.0,0.00019178,2]
[373440922,1753012247239,-480.0,0.00019178,2]
[373440923,1753012247249,-480.0,0.00019178,2]
[373440924,1753012247259,-480.0,0.00019178,2]
[373440925,1753012247270,-480.0,0.00019178,2]
[373440926,1753012247280,-480.0,0.00019178,2]
[373440927,1753012247292,-480.0,0.00019178,2]
[373440928,1753012247313,-480.0,0.00019178,2]
[373440929,1753012247334,-524.03,0.00019178,2]
[373440930,1753012247358,-524.03,0.00019178,2]
[373440931,1753012247379,-524.03,0.00019178,2]
[373440932,1753012247402,-524.03,0.00019178,2]
[373440933,1753012247423,-524.03,0.00019178,2]
[373440934,1753012247446,-524.03,0.00019178,2]
[373440935,1753012247469,-524.03,0.00019178,2]
[373440936,1753012247492,-524.03,0.00019178,2]
[373440937,1753012247517,-524.03,0.00019178,2]
[373440938,1753012247538,-524.03,0.00019178,2]
[373440939,1753012247562,-524.03,0.00019178,2]
[373440940,1753012247584,-524.03,0.00019178,2]
[373440941,1753012247605,-524.03,0.00019178,2]
[373440942,1753012247618,-480.0,0.00019178,2]
[373440943,1753012247627,-480.0,0.00019178,2]
[373440944,1753012247636,-480.0,0.00019178,2]
[373440945,1753012247646,-462.72621245,0.00019178,2]
[373440946,1753012247655,-480.0,0.00019178,2]
[373440947,1753012247665,-500.0,0.00019178,2]
[373440948,1753012247674,-500.0,0.00019178,2]
[373440949,1753012247683,-500.0,0.00019178,2]
[373440950,1753012247693,-500.0,0.00019178,2]
[373440951,1753012247703,-500.0,0.00019178,2]
[373440952,1753012247713,-500.0,0.00019178,2]
[373440953,1753012247724,-480.0,0.00019178,2]
[373440954,1753012247733,-485.2205412,0.00019178,2]
[373440955,1753012247743,-480.0,0.00019178,2]
[373440956,1753012247752,-480.0,0.00019178,2]
[373440957,1753012247761,-466.18171221,0.00019178,2]
[373440958,1753012247967,-480.0,0.00019178,2]
[373440959,1753012248002,-1428.63,0.00019178,2]
[373440960,1753012248012,-480.0,0.00019178,2]
[373440961,1753012248024,-460.0,0.00019178,2]
[373440962,1753012248034,-480.0,0.00019178,2]
[373440963,1753012248044,-480.0,0.00019178,2]
[373440964,1753012248054,-480.0,0.00019178,2]
[373440965,1753012248064,-480.0,0.00019178,2]
[373440966,1753012248073,-480.0,0.00019178,2]
[373440967,1753012248083,-480.0,0.00019178,2]
[373440968,1753012248092,-480.0,0.00019178,2]
[373440969,1753012248102,-480.0,0.00019178,2]
[373440970,1753012248111,-462.84655235,0.00019178,2]
[373440971,1753012248121,-483.89055153,0.00019178,2]
[373440972,1753012248131,-480.0,0.00019178,2]
[373440973,1753012248140,-515.92,0.00019178,2]
[373440974,1753012248150,-480.0,0.00019178,2]
[373440975,1753012248159,-480.0,0.00019178,2]
[373440976,1753012248170,-480.0,0.00019178,2]
[373440977,1753012248179,-460.0,0.00019178,2]
[373440978,1753012248189,-1188.32,0.00019178,2]
[373440979,1753012248198,-184.78611193,0.00019178,2]
[373440980,1753012248266,-295.21388807,0.00019178,2]
[373440981,1753012248276,-485.47490257,0.00019178,2]
[373440982,1753012248286,-480.0,0.00019178,2]
[373440983,1753012248296,-480.0,0.00019178,2]
[373440984,1753012248305,-465.56832714,0.00019178,2]
[373440985,1753012248315,-500.0,0.00019178,2]
[373440986,1753012248324,-500.0,0.00019178,2]
[373440987,1753012248334,-500.0,0.00019178,2]
[373440988,1753012248343,-2184.92,0.00019178,2]
[373440989,1753012248353,-500.0,0.00019178,2]
[373440990,1753012248362,-500.0,0.00019178,2]
[373440991,1753012248372,-500.0,0.00019178,2]
[373440992,1753012248381,-500.0,0.00019178,2]
[373440993,1753012248391,-500.0,0.00019178,2]
[373440994,1753012248400,-500.0,0.00019178,2]
[373440995,1753012248410,-500.0,0.00019178,2]
[373440996,1753012248419,-500.0,0.00019178,2]
[373440997,1753012248428,-500.0,0.00019178,2]
[373440998,1753012248438,-500.0,0.00019178,2]
[373440999,1753012248448,-480.0,0.00019178,2]
[373441000,1753012248457,-480.0,0.00019178,2]
[373441001,1753012248467,-584.20711761,0.00019178,2]
[373441002,1753012248476,-480.0,0.00019178,2]
[373441003,1753012248486,-480.0,0.00019178,2]
[373441004,1753012248496,-480.0,0.00019178,2]
[373441005,1753012248505,-480.0,0.00019178,2]
[373441006,1753012248515,-480.0,0.00019178,2]
[373441007,1753012248526,-480.0,0.00019178,2]
[373441008,1753012248535,-1063.37,0.00019178,2]
[373441009,1753012248545,-480.0,0.00019178,2]
[373441010,1753012248554,-480.0,0.00019178,2]
[373441011,1753012248563,-480.0,0.00019178,2]
[373441012,1753012248573,-480.0,0.00019178,2]
[373441013,1753012248583,-480.0,0.00019178,2]
[373441014,1753012248592,-480.0,0.00019178,2]
[373441015,1753012248602,-757.78,0.00019178,2]
[373441016,1753012248611,-480.0,0.00019178,2]
[373441017,1753012248621,-480.0,0.00019178,2]
[373441018,1753012248630,-480.0,0.00019178,2]
[373441019,1753012248640,-480.0,0.00019178,2]
[373441020,1753012248649,-480.0,0.00019178,2]
[373441021,1753012248658,-480.0,0.00019178,2]
[373441022,1753012248667,-480.0,0.00019178,2]
[373441023,1753012248677,-1480.7,0.00019178,2]
[373441024,1753012248686,-480.0,0.00019178,2]
[373441025,1753012248696,-985.64,0.00019178,2]
[373441026,1753012248706,-480.0,0.00019178,2]
[373441027,1753012248716,-480.0,0.00019178,2]
[373441028,1753012248726,-482.48907408,0.00019178,2]
[373441029,1753012248736,-848.19,0.00019178,2]
[373441030,1753012248745,-462.0742764,0.00019178,2]
[373441031,1753012248754,-480.0,0.00019178,2]
[373441032,1753012248764,-486.16972026,0.00019178,2]
[373441033,1753012248775,-480.0,0.00019178,2]
[373441034,1753012248785,-604.33,0.00019178,2]
[373441035,1753012248799,-174.272482,0.00019178,2]
[373441036,1753012248809,-159.396807,0.00019178,2]
[373441037,1753012248819,-480.0,0.00019178,2]
[373441038,1753012248829,-482.56068342,0.00019178,2]
[373441039,1753012248839,-480.0,0.00019178,2]
[373441040,1753012248849,-480.0,0.00019178,2]
[373441041,1753012248859,-480.0,0.00019178,2]
[373441042,1753012248870,-480.0,0.00019178,2]
[373441043,1753012248880,-2022.965522,0.00019178,2]
[373441044,1753012248897,-1962.521391,0.00019178,2]
[373441045,1753012248907,-480.0,0.00019178,2]
[373441046,1753012248917,-2741.07,0.00019178,2]
[373441047,1753012248928,-480.0,0.00019178,2]
[373441048,1753012248939,-989.19,0.00019178,2]
[373441049,1753012248949,-480.0,0.00019178,2]
[373441050,1753012248959,-480.0,0.00019178,2]
[373441051,1753012248970,-742.47,0.00019178,2]
[373441052,1753012248980,-462.75665307,0.00019178,2]
[373441053,1753012248991,-480.0,0.00019178,2]
[373441054,1753012249001,-273.76521797,0.00019178,2]
[373441055,1753012249011,-500.0,0.00019178,2]
[373441056,1753012249022,-480.0,0.00019178,2]
[373441057,1753012249032,-306.55814472,0.00019178,2]
[373441058,1753012249044,-480.0,0.00019178,2]
[373441059,1753012249054,-480.0,0.00019178,2]
[373441060,1753012249064,-485.87620798,0.00019178,2]
[373441061,1753012249074,-480.0,0.00019178,2]
[373441062,1753012249083,-480.0,0.00019178,2]
[373441063,1753012249093,-480.0,0.00019178,2]
[373441064,1753012249104,-484.44559249,0.00019178,2]
[373441065,1753012249114,-486.89,0.00019178,2]
[373441066,1753012249124,-811.85,0.00019178,2]
[373441067,1753012249134,-480.0,0.00019178,2]
[373441068,1753012249144,-521.08,0.00019178,2]
[373441069,1753012249154,-483.42648644,0.00019178,2]
[373441070,1753012249164,-480.0,0.00019178,2]
[373441071,1753012249174,-486.15551337,0.00019178,2]
[373441072,1753012249184,-480.0,0.00019178,2]
[373441073,1753012249194,-480.0,0.00019178,2]
[373441074,1753012249204,-480.0,0.00019178,2]
[373441075,1753012249214,-480.0,0.00019178,2]
[373441076,1753012249224,-2050.83,0.00019178,2]
[373441077,1753012249234,-480.0,0.00019178,2]
[373441078,1753012249245,-480.0,0.00019178,2]
[373441079,1753012249255,-500.0,0.00019178,2]
[373441080,1753012249265,-500.0,0.00019178,2]
[373441081,1753012249278,-500.0,0.00019178,2]
[373441082,1753012249287,-500.0,0.00019178,2]
[373441083,1753012249298,-500.0,0.00019178,2]
[373441084,1753012249308,-500.0,0.00019178,2]
[373441085,1753012249317,-480.0,0.00019178,2]
[373441086,1753012249327,-500.0,0.00019178,2]
[373441087,1753012249337,-500.0,0.00019178,2]
[373441088,1753012249347,-500.0,0.00019178,2]
[373441089,1753012249357,-500.0,0.00019178,2]
[373441090,1753012249367,-480.0,0.00019178,2]
[373441091,1753012249377,-500.0,0.00019178,2]
[373441092,1753012249387,-480.0,0.00019178,2]
[373441093,1753012249397,-500.0,0.00019178,2]
[373441094,1753012249407,-460.0,0.00019178,2]
[373441095,1753012249416,-500.0,0.00019178,2]
[373441096,1753012249426,-462.19598826,0.00019178,2]
[373441097,1753012249436,-600.99,0.00019178,2]
[373441098,1753012249446,-840.83,0.00019178,2]
[373441099,1753012249456,-480.0,0.00019178,2]
[373441100,1753012249466,-480.0,0.00019178,2]
[373441101,1753012249476,-1686.949187,0.00019178,2]
[373441102,1753012249486,-480.0,0.00019178,2]
[373441103,1753012249496,-480.0,0.00019178,2]
[373441104,1753012249505,-480.0,0.00019178,2]
[373441105,1753012249515,-480.0,0.00019178,2]
[373441106,1753012249526,-480.0,0.00019178,2]
[373441107,1753012249536,-480.0,0.00019178,2]
[373441108,1753012249546,-460.0,0.00019178,2]
[373441109,1753012249556,-460.0,0.00019178,2]
[373441110,1753012249565,-480.0,0.00019178,2]
[373441111,1753012249575,-480.0,0.00019178,2]
[373441112,1753012249585,-480.0,0.00019178,2]
[373441113,1753012249595,-480.0,0.00019178,2]
[373441114,1753012249605,-580.76,0.00019178,2]
[373441115,1753012249615,-480.0,0.00019178,2]
[373441116,1753012249624,-1000.52,0.00019178,2]
[373441117,1753012249634,-480.0,0.00019178,2]
[373441118,1753012249643,-480.0,0.00019178,2]
[373441119,1753012249653,-480.0,0.00019178,2]
[373441120,1753012249663,-852.76,0.00019178,2]
[373441121,1753012249672,-480.0,0.00019178,2]
[373441122,1753012249682,-480.0,0.00019178,2]
[373441123,1753012249691,-480.0,0.00019178,2]
[373441124,1753012249702,-502.24,0.00019178,2]
[373441125,1753012249711,-480.0,0.00019178,2]
[373441126,1753012249720,-461.08591083,0.00019178,2]
[373441127,1753012249730,-480.0,0.00019178,2]
[373441128,1753012249739,-445.54896645,0.00019178,2]
[373441129,1753012249749,-480.0,0.00019178,2]
[373441130,1753012249759,-766.18,0.00019178,2]
[373441131,1753012249770,-480.0,0.00019178,2]
[373441132,1753012249780,-480.0,0.00019178,2]
[373441133,1753012249789,-480.0,0.00019178,2]
[373441134,1753012249798,-480.0,0.00019178,2]
[373441135,1753012249808,-480.0,0.00019178,2]
[373441136,1753012249817,-541.7,0.00019178,2]
[373441137,1753012249828,-151.0,0.00019178,2]
[373441138,1753012249838,-480.0,0.00019178,2]
[373441139,1753012249847,-3807.45,0.00019178,2]
[373441140,1753012249857,-480.0,0.00019178,2]
[373441141,1753012249867,-480.0,0.00019178,2]
[373441142,1753012249876,-480.0,0.00019178,2]
[373441143,1753012249886,-480.0,0.00019178,2]
[373441144,1753012249898,-480.0,0.00019178,2]
[373441145,1753012249907,-151.0,0.00019178,2]
[373441146,1753012249924,-480.0,0.00019178,2]
[373441147,1753012249934,-480.0,0.00019178,2]
[373441148,1753012249944,-480.0,0.00019178,2]
[373441149,1753012249954,-480.0,0.00019178,2]
[373441150,1753012249964,-480.0,0.00019178,2]
[373441151,1753012249975,-480.0,0.00019178,2]
[373441152,1753012249985,-1217.69,0.00019178,2]
[373441153,1753012249994,-1186.47,0.00019178,2]
[373441154,1753012250004,-832.1,0.00019178,2]
[373441155,1753012250014,-460.0,0.00019178,2]
[373441156,1753012250024,-498.91380861,0.00019178,2]
[373441157,1753012250034,-751.66,0.00019178,2]
[373441158,1753012250044,-480.0,0.00019178,2]
[373441159,1753012250053,-480.0,0.00019178,2]
[373441160,1753012250063,-480.0,0.00019178,2]
[373441161,1753012250072,-490.0,0.00019178,2]
[373441162,1753012250081,-1005.16,0.00019178,2]
[373441163,1753012250091,-480.0,0.00019178,2]
[373441164,1753012250100,-480.0,0.00019178,2]
[373441165,1753012250111,-490.0,0.00019178,2]
[373441166,1753012250120,-480.0,0.00019178,2]
[373441167,1753012250130,-581.43,0.00019178,2]
[373441168,1753012250139,-480.0,0.00019178,2]
[373441169,1753012250148,-480.0,0.00019178,2]
[373441170,1753012250158,-1436.54,0.00019178,2]
[373441171,1753012250167,-480.0,0.00019178,2]
[373441172,1753012250176,-480.0,0.00019178,2]
[373441173,1753012250186,-480.0,0.00019178,2]
[373441174,1753012250195,-153.228138,0.00019178,2]
[373441175,1753012250204,-462.30433512,0.00019178,2]
[373441176,1753012250214,-480.0,0.00019178,2]
[373441177,1753012250223,-486.02258491,0.00019178,2]
[373441178,1753012250233,-158.040476,0.00019178,2]
[373441179,1753012250242,-288.51981875,0.00019178,2]
[373441180,1753012250251,-480.0,0.00019178,2]
[373441181,1753012250260,-480.0,0.00019178,2]
[373441182,1753012250272,-193.038467,0.00019178,2]
[373441183,1753012250281,-188.35043,0.00019178,2]
[373441184,1753012250290,-480.0,0.00019178,2]
[373441185,1753012250299,-768.64,0.00019178,2]
[373441186,1753012250309,-480.0,0.00019178,2]
[373441187,1753012250319,-460.0,0.00019178,2]
[373441188,1753012250328,-465.74855671,0.00019178,2]
[373441189,1753012250337,-480.0,0.00019178,2]
[373441190,1753012250346,-424.65141177,0.00019178,2]
[373441191,1753012250355,-480.0,0.00019178,2]
[373441192,1753012250365,-771.87,0.00019178,2]
[373441193,1753012250375,-480.0,0.00019178,2]
[373441194,1753012250459,-269.48149005,0.00019178,2]
[373441195,1753012250469,-732.16,0.00019178,2]
[373441196,1753012250479,-499.42348266,0.00019178,2]
[373441197,1753012250488,-480.0,0.00019178,2]
[373441198,1753012250497,-480.0,0.00019178,2]
[373441199,1753012250507,-480.0,0.00019178,2]
[373441200,1753012250516,-480.0,0.00019178,2]
[373441201,1753012250526,-466.98878689,0.00019178,2]
[373441202,1753012250536,-480.0,0.00019178,2]
[373441203,1753012250545,-575.98241143,0.00019178,2]
[373441204,1753012250555,-460.0,0.00019178,2]
[373441205,1753012250565,-480.0,0.00019178,2]
[373441206,1753012250574,-1005.04,0.00019178,2]
[373441207,1753012250583,-622.85646556,0.00019178,2]
[373441208,1753012250592,-480.0,0.00019178,2]
[373441209,1753012250601,-151.0,0.00019178,2]
[373441210,1753012250610,-480.0,0.00019178,2]